Cogmind - Beta 15 @@@ ROGUE MODE // 2025.08.18 @ 21:47:24 Player: Mercey Result: Destroyed by as-23585 with Assembled Maul Performance ------------- Evolutions (0) 0 Regions Visited (4) 800 Robots Destroyed (13) 65 Value Destroyed (133) 133 Prototype IDs (23) 460 Alien Tech Used (0) 0 Bonus (300) 300 TOTAL SCORE: 1758 Bonus ------- Aligned with FarCom 300 Cogmind --------- Core Integrity 0/250 Matter 289/300 Energy 75/100 System Corruption 3% Temperature Cool (0) Movement Core (150) Ox2 Location -9/Mines Parts ------- > --- POWER (1) -------- (None) > --- PROPULSION (2) --- (None) > --- UTILITY (2) ------ Small Storage Unit > --- WEAPON (2) ------- Small Laser Assault Rifle > --- INVENTORY (8) ---- Visual Processing Unit Sensor Array Light Armor Plating Light Assault Rifle Grenade Launcher Datajack Peak State ------------ > --- POWER ------------ Light Ion Engine > --- PROPULSION ------- Aluminum Leg Aluminum Leg > --- UTILITY ---------- Small Storage Unit Modified TNC > --- WEAPON ----------- EM Pulse Gun Assault Rifle > --- INVENTORY -------- Light Ion Engine Light Ion Engine Visual Processing Unit Propulsion Shielding Light Armor Plating Small Laser Grenade Launcher Datajack [Rating: 12] Favorites ----------- Power Light Ion Engine Engine Light Ion Engine Propulsion Aluminum Leg Leg Aluminum Leg Utility Small Storage Unit Device Sensor Array Storage Small Storage Unit Processor Modified TNC Weapon EM Pulse Gun Energy Gun EM Pulse Gun Ballistic Gun Assault Rifle Build | -11 -10 -10 -10 -9 ------- Run | Yrd Mat Min Exi Min Slots Evolved . | . . . . . Power . | . . . . . Propulsion . | . . . . . Utility . | . . . . . Weapon . | . . . . . Parts Attached 12 | 6 1 1 1 3 Power 3 | 1 . . . 2 Engine 3 | 1 . . . 2 Core . | . . . . . Reactor . | . . . . . Propulsion 2 | 2 . . . . Treads . | . . . . . Leg 2 | 2 . . . . Wheel . | . . . . . Hover . | . . . . . Flight . | . . . . . Utility 3 | 1 1 . 1 . Device 1 | . 1 . . . Storage 1 | 1 . . . . Processor 1 | . . . 1 . Hackware . | . . . . . Protection . | . . . . . Artifact . | . . . . . Weapon 4 | 2 . 1 . 1 Energy Gun 2 | 1 . . . 1 Energy Cannon . | . . . . . Ballistic Gun 2 | 1 . 1 . . Ballistic Cannon . | . . . . . Launcher . | . . . . . Special Weapon . | . . . . . Impact Weapon . | . . . . . Slashing Weapon . | . . . . . Piercing Weapon . | . . . . . Special Melee Weapon . | . . . . . Unidentified Prototypes . | . . . . . Parts Lost 7 | . . . . 7 Power 3 | . . . . 3 Propulsion 2 | . . . . 2 Utility 1 | . . . . 1 Weapon 1 | . . . . 1 Highest Loss Streak 5 | . . . . 5 To Critical Strikes . | . . . . . Average Backups 6 | 1 3 7 8 7 Power 1 | . 1 1 2 1 Propulsion . | . . . . . Utility 2 | . 1 3 3 3 Weapon 1 | . 1 2 2 1 Tool/Special . | . . . . . Unused Backups 7 | . . 1 1 5 Power . | . . . . . Propulsion . | . . . . . Utility 3 | . . . 1 2 Weapon 3 | . . 1 . 2 Tool/Special 1 | . . . . 1 Average Slot Usage (%) 99 | . 98 100 100 96 Engine 14 | . 14 14 14 14 Leg 27 | . 28 28 28 25 Device 11 | . 12 14 11 . Storage 14 | . 14 14 14 14 Processor 2 | . . . 2 12 Energy Gun 14 | . 14 14 14 14 Ballistic Gun 14 | . 14 14 14 14 Peak Build Rating 12 | 6 7 7 12 12 Average Rating 7 | 4 6 7 8 11 On Entrance 6 | . 6 7 7 12 Naked Turns . | . . . . . Heaviest Build 13 | 11 12 13 13 11 Greatest Support 20 | 20 20 20 20 20 Greatest Overweight (x) 1 | 1 . . . . Average Overweight (x) . | . . . . . Largest Inventory Capacity 8 | 8 8 8 8 8 Average Capacity 7 | 6 8 8 8 8 Most Carried 8 | 3 6 8 8 8 Average Carried 6 | 1 3 7 7 7 Final Capacity 8 | 8 8 8 8 8 Final Carried 8 | 2 6 8 8 6 Class Distribution -------------------- 100% | Mutant Dominant Class ---------------- Mutant | -10/Materials Mutant | -10/Mines Mutant | -10/Exiles Mutant | -9/Mines Resources | -11 -10 -10 -10 -9 ----------- Run | Yrd Mat Min Exi Min Matter Collected 344 | 238 42 14 . 50 Remotely . | . . . . . Salvage Created 294 | . 140 60 . 94 Parts 25 | . 14 8 . 3 Haulers Intercepted . | . . . . . Recyclers Shooed 1 | . 1 . . . Parts Field Recycled . | . . . . . Retrieved Matter . | . . . . . Parts Self-Destructed . | . . . . . Prevented . | . . . . . Kills | -11 -10 -10 -10 -9 ------- Run | Yrd Mat Min Exi Min Combat Hostiles Destroyed 12 | . 4 3 . 5 Guns 12 | . 4 3 . 5 Classes Destroyed 4 | . 3 . . 1 Worker 1 | . 1 . . . Watcher 2 | . 2 . . . Swarmer 10 | . 4 3 . 3 Assembled 2 | . . . . 2 Best Kill Streak 3 | . 2 3 . 3 Combat Bots Only 3 | . 2 3 . 3 Max Kills in Single Turn 2 | . 1 1 . 2 Gunslinging 1 | . . . . 1 Exploded . | . . . . . Melee . | . . . . . Uniques/NPCs Destroyed . | . . . . . Combat | -11 -10 -10 -10 -9 -------- Run | Yrd Mat Min Exi Min Hostile Shots Fired 80 | . 25 10 . 45 Missed 20 | . 8 3 . 9 Hits 60 | . 17 7 . 36 Melee 18 | . . . . 18 Projectile 42 | . 17 7 . 18 Critical Strikes 1 | . . . . 1 Damage Taken 884 | . 132 59 . 693 Core 251 | . 17 17 . 217 Absorbed by Shields . | . . . . . Core Remaining (%) 100 | 100 . . . . Volleys Fired 38 | . 16 4 . 18 Largest 2 | . 2 2 . 2 Hottest 60 | . 60 60 . 60 Shots Fired 74 | . 32 8 . 34 Gun 74 | . 32 8 . 34 Cannon . | . . . . . Launcher . | . . . . . Special . | . . . . . Kinetic 38 | . 16 4 . 18 Thermal 14 | . . . . 14 Explosive . | . . . . . Electromagnetic 22 | . 16 4 . 2 Robot Hit Streak 7 | . 6 3 . 7 Robot Miss Streak 3 | . 3 2 . 3 Penetration Max . | . . . . . Secondary Targets 4 | . . 2 . 2 Max Gunslinging Chain 1 | . . 1 . 1 Shots Hit Robots 42 | . 18 4 . 20 Core Hits 20 | . 9 3 . 8 Critical Kills . | . . . . . Critical Parts Destroyed 1 | . . . . 1 Critical Strikes 1 | . . . . 1 Destroy 1 | . . . . 1 Melee Attacks . | . . . . . Impact . | . . . . . Slashing . | . . . . . Piercing . | . . . . . Sneak Attacks . | . . . . . Combat Hostiles . | . . . . . Follow-up Attacks . | . . . . . Damage Inflicted 496 | . 225 41 . 230 Guns 475 | . 204 41 . 230 Cannons . | . . . . . Explosions . | . . . . . Melee . | . . . . . Ramming 21 | . 21 . . . Kinetic 230 | . 88 9 . 133 Thermal 74 | . . . . 74 Explosive . | . . . . . Electromagnetic 171 | . 116 32 . 23 Impact . | . . . . . Slashing . | . . . . . Piercing . | . . . . . Highest Corruption 3 | . . . . 3 Average Corruption 2 | . . . . 2 Corruption Purged . | . . . . . Corruption Blocked . | . . . . . Effects 1 | . . . . 1 Energy Discharges 1 | . . . . 1 Overload Shots . | . . . . . Overflow Damage . | . . . . . Projectiles . | . . . . . Explosions . | . . . . . Melee . | . . . . . Knockbacks . | . . . . . Impact . | . . . . . Kinetic . | . . . . . Secondary . | . . . . . Self-Inflicted Damage . | . . . . . Shots . | . . . . . Rammed . | . . . . . Targets Rammed 7 | . 7 . . . Kicked 7 | . 7 . . . Crushed . | . . . . . Highest Temperature 40 | . 40 20 . . Average Temperature 16 | . 17 15 . . Received Heat Transfer . | . . . . . Siege Activations . | . . . . . Martial Activations . | . . . . . Shielding Activations . | . . . . . Robots Disrupted . | . . . . . Combat Hostiles . | . . . . . Robots Corrupted . | . . . . . Combat Hostiles . | . . . . . Parts Fried 1 | . 1 . . . Impact Corruptions . | . . . . . Robots Melted . | . . . . . Combat Hostiles . | . . . . . Parts Melted . | . . . . . Heat Transferred 175 | . . . . 175 Parts Sabotaged . | . . . . . Parts Stolen . | . . . . . Parts Stripped . | . . . . . Power Chain Reactions . | . . . . . Alert | -11 -10 -10 -10 -9 ------- Run | Yrd Mat Min Exi Min Maximum Alert Level . | . . . . . Low Security (%) 100 | 100 100 100 . 100 Level 1 . | . . . . . Level 2 . | . . . . . Level 3 . | . . . . . Level 4 . | . . . . . Level 5 . | . . . . . High Security . | . . . . . Max Security . | . . . . . Peak Influence 80 | . 55 80 . 60 Initial 10 | . . 10 . . Average 22 | . 19 37 . 25 Influence Increases 294 | . 154 70 . 70 Destroy 0b10 Robot/C 200 | . 80 60 . 60 Destroy 0b10 Robot/NC 15 | . 15 . . . Destroy Leader 34 | . 14 10 . 10 Lose Combat Pursuer 45 | . 45 . . . Influence Decreases 294 | . 127 97 . 70 Entered New Map 17 | . . 17 . . Time Decay 247 | . 127 80 . 40 Lost Part 30 | . . . . 30 Squads Dispatched . | . . . . . Investigation . | . . . . . Extermination . | . . . . . Reinforcement . | . . . . . Assault . | . . . . . Garrison . | . . . . . Intercept . | . . . . . Searches Triggered . | . . . . . Construction Impeded . | . . . . . Haulers Reinforced . | . . . . . Active Scanning Responses . | . . . . . Cargo Convoy Interrupts . | . . . . . Stealth | -11 -10 -10 -10 -9 --------- Run | Yrd Mat Min Exi Min Distress Signals 3 | . 3 . . . Communications Jammed . | . . . . . Distress Signals . | . . . . . Times Spotted 26 | . 11 3 . 12 Peak Tracking Total 7 | . 4 3 . 7 Tactical Retreats 3 | . 2 . . 1 Traps | -11 -10 -10 -10 -9 ------- Run | Yrd Mat Min Exi Min Traps Triggered . | . . . . . Indirectly . | . . . . . Trap Hack Attempts . | . . . . . Triggered . | . . . . . Disarmed . | . . . . . Reprogrammed . | . . . . . Reused . | . . . . . Traps Extracted . | . . . . . Installed . | . . . . . Triggered . | . . . . . Machines | -11 -10 -10 -10 -9 ---------- Run | Yrd Mat Min Exi Min Machines Disabled . | . . . . . Max in Single Turn . | . . . . . Machines Repaired . | . . . . . Machines Dismantled . | . . . . . Machines Sabotaged . | . . . . . Overloaded Fab Kills . | . . . . . Hacking | -11 -10 -10 -10 -9 --------- Run | Yrd Mat Min Exi Min Machines Accessed 5 | . 1 . 4 . Terminals 1 | . 1 . . . Fabricators . | . . . . . Repair Stations . | . . . . . Recycling Units . | . . . . . Scanalyzers . | . . . . . Garrison Access . | . . . . . Total Hacks 28 | . 1 . 27 . Successful 28 | . 1 . 27 . Failed . | . . . . . Catastrophic . | . . . . . Database Lockouts . | . . . . . Manual 3 | . 1 . 2 . Terminals 1 | . 1 . . . Fabricators . | . . . . . Repair Stations . | . . . . . Recycling Units . | . . . . . Scanalyzers . | . . . . . Garrison Access . | . . . . . Terminal Hacks 28 | . 1 . 27 . Record 26 | . . . 26 . Branch Access Points 1 | . 1 . . . Proto ID Catalog 1 | . . . 1 . Fabricator Hacks . | . . . . . Repair Station Hacks . | . . . . . Recycling Unit Hacks . | . . . . . Scanalyzer . | . . . . . Garrison Access Hacks . | . . . . . Unauthorized Hacks . | . . . . . Terminals . | . . . . . Fabricators . | . . . . . Repair Stations . | . . . . . Recycling Units . | . . . . . Scanalyzers . | . . . . . Garrison Access . | . . . . . Data Cores Recovered . | . . . . . Used . | . . . . . Hacking Detections 1 | . 1 . . . Full Trace Events . | . . . . . Feedback Events . | . . . . . Feedback Blocked . | . . . . . Robot Schematics Acquired . | . . . . . Robots Built . | . . . . . Authchips . | . . . . . Time . | . . . . . Total Robot Build Rating . | . . . . . Part Schematics Acquired . | . . . . . Parts Built . | . . . . . Authchips . | . . . . . Time . | . . . . . Total Part Build Rating . | . . . . . Parts Repaired . | . . . . . Time . | . . . . . Parts Recycled . | . . . . . Recycled Matter . | . . . . . Retrieved Matter . | . . . . . Retrieved Components . | . . . . . Parts Scanalyzed . | . . . . . Part Schematics Acquired . | . . . . . Parts Damaged . | . . . . . Bothacking | -11 -10 -10 -10 -9 ------------ Run | Yrd Mat Min Exi Min Used RIF Installer . | . . . . . Robots Hacked . | . . . . . Non-combat . | . . . . . Combat . | . . . . . Robot Hacks Applied . | . . . . . Relay Couplers Released . | . . . . . Fabnet Peak Effective % . | . . . . . Robots Rewired . | . . . . . Allies Hacked . | . . . . . Hacks Repelled . | . . . . . Allies | -11 -10 -10 -10 -9 -------- Run | Yrd Mat Min Exi Min Total Allies . | . . . . . Largest Group . | . . . . . Highest-Rated Group . | . . . . . Highest-Rated Ally . | . . . . . Total Orders . | . . . . . Ally Attacks . | . . . . . Total Damage . | . . . . . Kills . | . . . . . Allies Corrupted . | . . . . . Allies Melted . | . . . . . Intel | -11 -10 -10 -10 -9 ------- Run | Yrd Mat Min Exi Min Active Infowar (turns) 1316 | . 376 177 662 101 Sensors 1074 | . 376 177 521 . T.N.C. 242 | . . . 141 101 Robot Analysis Total . | . . . . . Derelict Logs Recovered 1 | . . 1 . . Drone Launches . | . . . . . Drone Recoveries . | . . . . . Exploration | -11 -10 -10 -10 -9 ------------- Run | Yrd Mat Min Exi Min Turns Passed 1416 | 70 396 177 663 110 Spaces Moved 1014 | 54 231 134 550 45 Core 22 | 22 . . . . Treads . | . . . . . Legs 992 | 32 231 134 550 45 Wheels . | . . . . . Hover . | . . . . . Flight . | . . . . . Fastest Speed 50 | 50 120 120 120 120 Average Speed 119 | 110 120 120 120 120 Slowest Speed 120 | 120 120 120 120 120 Overloaded Moves . | . . . . . Propulsion Burnouts . | . . . . . Robots Hopped . | . . . . . Potential Cave-ins . | . . . . . Cave-ins Triggered . | . . . . . Exploration Rate (%) 33 | 4 40 22 93 8 Regions Visited 4 Branch Regions 3 Pre-discovered Areas 1 | . . . 1 . Known Exits Taken 1 | . 1 . . . Unknown Exits Taken 3 | 1 . 1 1 . Scrap Searched 2 | . . 2 . . Spaces Dug . | . . . . . Terrain Destroyed . | . . . . . Melee . | . . . . . Projectile . | . . . . . AOE . | . . . . . Terrain Rammed . | . . . . . Walls Destroyed . | . . . . . Machines Disabled . | . . . . . Actions | -11 -10 -10 -10 -9 --------- Run | Yrd Mat Min Exi Min Total 1146 | 62 319 145 553 67 Wait 61 | . 61 . . . Move 1010 | 53 230 133 549 45 Hop . | . . . . . Pick Up 13 | 3 4 4 1 1 Fast Attach 7 | 5 1 . 1 . Attach 4 | 1 . . . 3 Detach . | . . . . . Swap 1 | . . 1 . . Drop 5 | . . 3 2 . Fire 38 | . 16 4 . 18 Melee . | . . . . . Ram . | . . . . . Kick 7 | . 7 . . . Crush . | . . . . . Escape Stasis . | . . . . . Rewire . | . . . . . Trap . | . . . . . Miscellaneous . | . . . . . Route ------- -11/Scrapyard -10/Materials (discovered 3 exits: [*Mat] / *Min x2) -10/Mines (discovered 2 exits: [*Mat] / *Exi) -10/Exiles (discovered 2 exits: [*Min x2]) -9/Mines History --------- Turn | Location | Event 21 | -11/Scrapyard | Discovered new exit (range 15) 71 | -11/Scrapyard | Entered Materials 96 | -10/Materials | Identified exit to Mines 294 | -10/Materials | Discovered new exit (range 11) 302 | -10/Materials | Build established: Mutant 467 | -10/Materials | Entered Mines 468 | -10/Mines | Met a Derelict bent on vengeance 513 | -10/Mines | Learned Materials emergency access door positions 554 | -10/Mines | Discovered new exit (range 3) 572 | -10/Mines | Deemed a non-threat by the Exiles lab entrance 572 | -10/Mines | Discovered new exit (range 5) 644 | -10/Mines | Entered Exiles 662 | -10/Exiles | Discovered new exit (range 15) 689 | -10/Exiles | Met 8R-AWN 709 | -10/Exiles | Met EX-HEX 782 | -10/Exiles | Met EX-DEC 823 | -10/Exiles | Visited The Gauntlet 1007 | -10/Exiles | Learned location of Zion (-7) 1052 | -10/Exiles | Met EX-BIN 1075 | -10/Exiles | Aligned with FarCom system 1076 | -10/Exiles | Given EX-Vault access code 1134 | -10/Exiles | Opened EX-Vault 1166 | -10/Exiles | Found Modified TNC 1187 | -10/Exiles | Exiles lab attacked by MAIN.C 1292 | -10/Exiles | Discovered new exit (range 12) 1307 | -10/Exiles | Left Exiles lab with Modified TNC 1307 | -10/Exiles | Entered Mines 1308 | -9/Mines | Assembled infested the area 1398 | -9/Mines | Core integrity fell below 50% 1411 | -9/Mines | Core integrity fell below 20% 1417 | -9/Mines | Destroyed by as-23585 with Assembled Maul Last Messages --------------- 5L-KAT: "Oh no, it's like what happened to the Exiles when they were wandering homeless, only there's no Warlord to save us!" Acquired 16 matter. as-70073 suffers critical hit (Destroy). Destroyed Asb. Hover Unit. 5L-KAT destroyed. as-70073 destroyed. Switching to secondary target: as-23585. Lgt. Ion Engine destroyed. System corrupted by crushing effect (+2). Knocked back. Acquired 4 matter. Aluminum Leg destroyed. Modified TNC destroyed. System corrupted by crushing effect (+1). Aluminum Leg destroyed. Lgt. Ion Engine destroyed. System corrupted: Energy discharge (-37). Destroyed Asb. Hover Unit. Map ----- +----------------------------------------------------+ | ??????????????????????????????????????? | | ??????????????????????????????????????? | | ??????????????????????????????????????? | | ??????????????????????????????????????? | | ??????????????????????????????????????? | | ??????????????????????????????????????? | | ??????????????????????????????????????? | | ??????????????????????????????????????? | | ??????????????????????????????????????? | | ??????????????????????????????????????? | | ??????????????????????????????????????? | | ??????????????????????????????????????? | | ??????????????????????????????????????? | | ??????????????????????????????????????? | | ??????????????????????????????????????? | | ??????????????????????????????????????? | | ??????????????????????????????????????? | | ????????????????# #################???? | | ?????????? #???? | | ?????????????????######## ####### #???? | | ????????????????????????# #?????# #???? | | ????????????????????????# #??#### ###?? | | ????????????????????????#%#??# #?? | | ????????????????????????#a#??# #?? | | ????????????????????????#a#??# #?? | | ??????????????????????###@#??# #?? | | ??????????????????????# a #??# = #?? | | ????????????#?????????# ###??#%=""" #?? | | ????????????# ???????#%#????# %""" #?? | | ?????????????# "?????#=#????# """ #?? | | ??????????????# ####%#????# #?? | | ???????????????# *#????########?? | | ???????????????# ######?????????????? | | ???????????????# ?????????????????????? | | ??????????????????????????????????????? | | ??????????????????????????????????????? | | ??????????????????????????????????????? | | ??????????????????????????????????????? | | ??????????????????????????????????????? | | ??????????????????????????????????????? | | ??????????????????????????????????????? | | ?????????????????d????????????????????? | | ??????????????????????????????????????? | | ??????????????????????????????????????? | | ??????????????????????????????????????? | | ??????????????????????????????????????? | | ??????????????????????????????????????? | | ??????????????????????????????????????? | | ??????????????????????????????????????? | | ??????????????????????????????????????? | +----------------------------------------------------+ Best States ------------- Heat Dissipation 25 Energy Generation 10 Energy Capacity 125 Matter Stores 300 Matter Capacity 300 Sight Range 16 Robot Scan Range 14 Terrain Scan Density 10 Evasion (%) 55 Item Schematics ----------------- None Robot Schematics ------------------ None Fabricated ------------ Nothing Repaired ---------- Nothing Alien Tech Used ----------------- None Achievements -------------- None Challenges ------------ None Game ------ Seed GaussElectrostormRigger Manual? 0 Play Time 00:20:58 Cumulative 29.6 hours Start 2025.08.18 @ 21:26:37 End 2025.08.18 @ 21:47:24 Sessions 1 Manual Loads 0 Difficulty Rogue Special Mode None Game No. 46 Rogue 46 Adventurer 0 Explorer 0 Win Type - Total 0 Types 0/0/0/0/0/0/0/0/0/0 Lore% 9 Gallery% 26 Achievement% 22 Wizard Run 0 Options --------- Layout 1 ASCII 0 Keyboard 1 Movement Arrows Keybinds 0 Fullscreen 1 Font 40/X11 Map View 51x44 Zoom Use 0% Tactical HUD 0 Map Filters NONE Filters NONE Steam 1 RUN: cd79c8c7-32db-422c-8bc7-521740556365